fUSD/lending_fUSD_20260313
["ID","MTS","AMOUNT","RATE_DAILY","PERIOD"]
[408312823,1773393032610,-500.0,0.00019973,2]
[408312824,1773393032619,-500.0,0.00019973,2]
[408312825,1773393032630,-500.0,0.00019973,2]
[408312826,1773393032639,-500.0,0.00019973,2]
[408312827,1773393032648,-500.0,0.00019973,2]
[408312828,1773393032658,-500.0,0.00019973,2]
[408312829,1773393032667,-501.62823002,0.00019973,2]
[408312830,1773393032676,-500.0,0.00019973,2]
[408312831,1773393032685,-500.0,0.00019973,2]
[408312832,1773393032694,-500.0,0.00019973,2]
[408312833,1773393032703,-215.76993859,0.0001999,2]
[408312834,1773393032711,-215.76993859,0.0001999,2]
[408312835,1773393032721,-151.0,0.00019997,2]
[408312836,1773393032730,-336.0,0.00019998,2]
[408312837,1773393032739,-300.0,0.00019999,2]
[408312838,1773393032748,-500.0,0.00019999,2]
[408312839,1773393032757,-500.0,0.00019999,2]
[408312840,1773393032766,-500.0,0.00019999,2]
[408312841,1773393032776,-500.0,0.00019999,2]
[408312842,1773393032785,-500.0,0.00019999,2]
[408312843,1773393032794,-500.0,0.00019999,2]
[408312844,1773393032803,-500.0,0.00019999,2]
[408312845,1773393032812,-500.0,0.00019999,2]
[408312846,1773393032821,-155.0,0.00019999,2]
[408312847,1773393032831,-500.0,0.00019999,2]
[408312848,1773393032840,-500.0,0.00019999,2]
[408312849,1773393032849,-500.0,0.00019999,2]
[408312850,1773393032859,-500.29266856,0.00019999,2]
[408312851,1773393032867,-500.0,0.00019999,2]
[408312852,1773393032877,-500.0,0.00019999,2]
[408312853,1773393032886,-500.0,0.00019999,2]
[408312854,1773393032895,-500.0,0.00019999,2]
[408312855,1773393032904,-246.66449934,0.00019999,2]
[408312856,1773393032913,-500.0,0.00019999,2]
[408312857,1773393032922,-500.0,0.00019999,2]
[408312858,1773393032931,-427.45954451,0.00019999,2]
[408312859,1773393032941,-500.0,0.00019999,2]
[408312860,1773393032950,-500.0,0.00019999,2]
[408312861,1773393032959,-500.0,0.00019999,2]
[408312862,1773393032968,-500.0,0.00019999,2]
[408312863,1773393032978,-500.0,0.00019999,2]
[408312864,1773393032987,-500.0,0.00019999,2]
[408312865,1773393032996,-500.0,0.00019999,2]
[408312866,1773393033006,-500.0,0.00019999,2]
[408312867,1773393033015,-500.0,0.00019999,2]
[408312868,1773393033024,-500.0,0.00019999,2]
[408312869,1773393033033,-500.0,0.00019999,2]
[408312870,1773393033042,-500.0,0.00019999,2]
[408312871,1773393033052,-500.0,0.00019999,2]
[408312872,1773393033061,-188.03043788,0.00019999,2]
[408312873,1773393033070,-609.13551251,0.00019999,2]
[408312874,1773393033080,-500.0,0.00019999,2]
[408312875,1773393033089,-500.0,0.00019999,2]
[408312876,1773393033098,-4814.0,0.0002,2]
[408312877,1773393033107,-3852.0,0.0002,2]
[408312878,1773393033116,-16160.91642026,0.0002,2]
[408312879,1773393033244,-145805.13914116,0.0002,2]
[408312880,1773393033256,-156479.45629489,0.0002,2]
[408312881,1773393033267,-103986.32273224,0.0002,2]
[408312882,1773393033278,-5707.44945277,0.0002,2]
[408312883,1773393033293,-143619.99999999,0.0002,2]
[408312884,1773393033307,-2786.11380652,0.0002,2]
[408312902,1773393039454,-200.76634596,0.000199,2]
[408312903,1773393039464,-150.0,0.000199,2]
[408312904,1773393039474,-3317156.93492094,0.0002,2]
[408312905,1773393039559,-1099.97827813,0.0002,2]
[408312906,1773393039770,-4396.377,0.0002,2]
[408312912,1773393042554,-395598.72617604,0.0002,2]
[408312913,1773393042566,-55684.30563446,0.0002,2]
[408312914,1773393042768,-4029.21897879,0.0002,2]
[408312916,1773393042779,-3864.86313451,0.0002,2]
[408312926,1773393045241,-923.0,0.00019135,2]
[408312927,1773393045251,-2525.04212035,0.0002,2]
[408312928,1773393045557,-1481.7833,0.0002,2]
[408312933,1773393298044,-300.0,0.00015999,2]
[408312934,1773393298072,-24145.5665,0.00016,2]
[408312935,1773393298095,-259.18670743,0.000169,2]
[408312936,1773393298119,-339.6,0.00017,7]
[408312937,1773393298143,-420.0,0.00017492,2]
[408312938,1773393298166,-160.0,0.00017655,2]
[408312939,1773393298189,-489.3078825,0.00018144,2]
[408312940,1773393298213,-587.0,0.00019125,2]
[408312941,1773393298237,-1214.0,0.00019135,2]
[408312942,1773393298261,-1832.71,0.000192,2]
[408312943,1773393298285,-250.0,0.00019326,2]
[408312944,1773393298308,-600.0,0.00019326,2]
[408312945,1773393298334,-2500.0,0.00019518,2]
[408312946,1773393298359,-748.14085166,0.00019595,2]
[408312947,1773393298383,-168.0,0.00019615,2]
[408312948,1773393298406,-2500.0,0.00019807,2]
[408312949,1773393298428,-2500.0,0.00019807,2]
[408312950,1773393298450,-2500.0,0.00019807,2]
[408312951,1773393298474,-189.361,0.00019899,2]
[408312952,1773393298501,-2006.947,0.00019899,2]
[408312953,1773393298527,-17088.85772653,0.000199,2]
[408312954,1773393298552,-170.17462717,0.000199,2]
[408312955,1773393298577,-5000.0,0.000199,2]
[408312956,1773393298602,-1000.0,0.000199,2]
[408312957,1773393298627,-500.0,0.00019973,2]
[408312958,1773393298649,-500.0,0.00019973,2]
[408312959,1773393298670,-500.0,0.00019973,2]
[408312960,1773393298691,-151.0,0.00019997,2]
[408312961,1773393298711,-300.0,0.00019999,2]
[408312962,1773393298733,-500.0,0.00019999,2]
[408312963,1773393298757,-500.0,0.00019999,2]
[408312964,1773393299047,-244.17994813,0.00019999,2]
[408312965,1773393299074,-286.74344581,0.00019999,2]
[408312966,1773393299097,-208.86902673,0.00019999,2]
[408312967,1773393299117,-3086.0,0.0002,2]
[408312968,1773393299138,-288254.35528404,0.0002,2]
[408312969,1773393302178,2230.2,0.00032877,120]
[408312980,1773394081060,500.0,0.00032877,120]
[408312981,1773394181181,301.46026772,0.000328,120]
[408312987,1773394231497,-250.0,0.00015,2]
[408312988,1773394231507,-342.34757849,0.00015188,2]
[408312989,1773394231517,-7.74709151,0.000162,2]
[408312990,1773394231657,-1296.03488269,0.000162,2]
[408312991,1773394231667,-300.0,0.00016498,2]
[408312992,1773394231676,-1200.0,0.00016498,2]
[408312993,1773394231686,-300.0,0.00016499,2]
[408312994,1773394231695,-272.16583602,0.00016499,2]
[408312995,1773394231706,-277.83416398,0.00016499,2]
[408312997,1773394231716,-600.0,0.000165,2]
[408312998,1773394231725,-500.0,0.000165,2]
[408313000,1773394231735,-2500.0,0.000165,2]
[408313002,1773394231744,-2500.0,0.000165,2]
[408313004,1773394231753,-2500.0,0.000165,2]
[408313006,1773394231762,-2500.0,0.000165,2]
[408313008,1773394231772,-2500.0,0.000165,2]
[408313010,1773394231784,-300.0,0.000165,2]
[408313012,1773394231794,-600.0,0.000165,2]
[408313014,1773394231803,-223.27474466,0.000165,2]
[408313016,1773394231813,-500.0,0.000165,2]
[408313018,1773394231822,-500.0,0.000165,2]
[408313020,1773394231831,-250.0,0.000165,2]
[408313023,1773394231841,-500.0,0.000165,2]
[408313025,1773394231853,-600.0,0.000165,2]
[408313027,1773394231862,-166.64,0.00016712,2]
[408313029,1773394231872,-188.67257488,0.00016712,2]
[408313031,1773394231881,-353.37,0.00017,7]
[408313032,1773394231890,-1000.0,0.00017048,2]
[408313033,1773394231900,-1137.38342981,0.00017048,2]
[408313034,1773394231910,-1000.0,0.00017048,2]
[408313035,1773394231920,-1500.0,0.00017596,2]
[408313036,1773394231929,-1500.0,0.00017596,2]
[408313037,1773394231938,-175.0,0.00017621,2]
[408313038,1773394231947,-154.3,0.00017753,2]
[408313039,1773394231956,-360.0,0.0001803,2]
[408313040,1773394231966,-1680.0,0.00018119,2]
[408313041,1773394231976,-1651.11556502,0.00018144,2]
[408313042,1773394231985,-1504.90829082,0.00018144,2]
[408313043,1773394231995,-1034.04,0.00018386,2]
[408313044,1773394232003,-941.07,0.00018542,2]
[408313045,1773394232014,-6756.038,0.00018935,2]
[408313046,1773394232023,-474.18365382,0.00018973,2]
[408313047,1773394232032,-164.72,0.00019,2]
[408313048,1773394232041,-700.0,0.00019001,2]
[408313049,1773394232050,-200.0,0.00019008,2]
[408313050,1773394232059,-5730.08,0.00019025,2]
[408313051,1773394232068,-1605.558,0.00019034,2]
[408313052,1773394232078,-500.0,0.00019034,2]
[408313053,1773394232088,-500.0,0.00019034,2]
[408313054,1773394232098,-397.79336753,0.00019034,2]
[408313055,1773394232107,-189.362,0.00019034,2]
[408313056,1773394232116,-164.46731176,0.00019035,2]
[408313057,1773394232126,-280663.07807294,0.00019035,2]
[408313058,1773394232138,-2264.64332706,0.00019035,2]
[408313059,1773394232148,-501.74189694,0.00019073,2]
[408313060,1773394232158,-500.0,0.00019073,2]
[408313061,1773394232167,-474.18365375,0.00019076,2]
[408313062,1773394232179,-430.114,0.00019135,2]
[408313063,1773394232189,-1043.0,0.00019135,2]
[408313064,1773394232198,-474.18365375,0.00019179,2]
[408313065,1773394232208,-154.3,0.00019232,2]
[408313066,1773394232221,-474.18365375,0.00019282,2]
[408313067,1773394232231,-164.46731176,0.00019323,2]
[408313068,1773394232241,-474.18365375,0.00019385,2]
[408313069,1773394232251,-474.18365375,0.00019488,2]
[408313070,1773394232260,-474.18365375,0.00019591,2]
[408313071,1773394232270,-164.46731176,0.00019612,2]
[408313072,1773394232280,-3240.0,0.00019618,2]
[408313073,1773394232290,-1000.0,0.00019621,2]
[408313074,1773394232299,-180.79856186,0.00019694,2]
[408313075,1773394237521,-293.38509189,0.00019694,2]
[408313077,1773394237531,-834.87364793,0.000197,2]
[408313079,1773394237542,-950.28904873,0.000197,2]
[408313080,1773394237551,-500.0,0.00019773,2]
[408313081,1773394237561,-500.0,0.00019773,2]
[408313082,1773394237570,-77.13855384,0.00019773,2]
[408313083,1773394237740,-422.86144616,0.00019773,2]
[408313084,1773394237749,-501.9681226,0.00019773,2]
[408313085,1773394237758,-500.0,0.00019773,2]
[408313086,1773394237767,-500.89837554,0.00019773,2]
[408313087,1773394237780,-500.0,0.00019773,2]
[408313088,1773394237790,-500.0,0.00019773,2]
[408313089,1773394237799,-500.8584641,0.00019773,2]
[408313090,1773394237808,-501.068818,0.00019773,2]
[408313091,1773394237818,-5730.08,0.0001979,2]
[408313092,1773394237827,-474.18365375,0.00019797,2]
[408313093,1773394237837,-200.72041206,0.00019799,2]
[408313094,1773394237849,-500.0,0.00019799,2]
[408313095,1773394237859,-488.15488851,0.00019799,2]
[408313096,1773394237868,-109017.2366423,0.000198,2]
[408313097,1773394237879,-840.60228494,0.000198,2]
[408313098,1773394237891,-531.13294994,0.000198,2]
[408313100,1773394237906,-349.63292703,0.000198,2]
[408313102,1773394237917,-396.03457319,0.000198,2]
[408313104,1773394237928,-1714.69396459,0.000198,2]
[408313106,1773394237940,-1295.89682445,0.000198,2]
[408313108,1773394237951,-1767.99195072,0.000198,2]
[408313126,1773394239745,-620.0,0.00019135,2]
[408313127,1773394239755,-394603.52448284,0.000198,2]
[408313128,1773394239764,-1410.0,0.00019899,2]
[408313129,1773394239774,-150.00570945,0.000199,7]
[408313130,1773394239790,-417.3197,0.000199,2]
[408313131,1773394239799,-474.18365375,0.000199,2]
[408313132,1773394239808,-164.46731176,0.000199,2]
[408313133,1773394239819,-989.11,0.00019902,2]
[408313134,1773394239827,-500.0,0.00019999,2]
[408313135,1773394239837,-515.52448038,0.00019999,2]
[408313136,1773394239846,-501.88920658,0.00019999,2]
[408313137,1773394239856,-540.40783545,0.00019999,2]
[408313138,1773394239866,-2471.0,0.0002,2]
[408313139,1773394239875,-2913949.50254073,0.0002,2]
[408313140,1773394239886,-2175.77916802,0.0002,2]
[408313141,1773394239928,-1000.0,0.0002,2]
[408313149,1773394242911,-1189.45646289,0.0002,2]
[408313154,1773394245996,-9.77279142,0.0002,2]
[408313155,1773394246013,-2576.95065122,0.0002,2]
[408313160,1773394503929,709.8,0.00032876,120]
[408313161,1773394545012,500.0,0.0003287,120]
[408313162,1773394632053,297.8,0.00026008,120]
[408313163,1773394632252,297.8,0.00028372,120]
[408313164,1773394693172,154.01,9.301e-05,2]
[408313165,1773394693572,154.01,0.00010147,2]
[408313166,1773394693776,154.01,0.00010993,2]
[408313167,1773394694031,154.01,0.00011838,2]
[408313168,1773394696647,154.01,0.00012684,2]
[408313169,1773394697792,154.01,0.00013529,2]
[408313170,1773394735649,100000.0,0.00032,120]
[408313176,1773394864460,-2099.83,0.00014374,2]
[408313177,1773394864483,-154.01,0.00014375,2]
[408313178,1773394864505,-269.0,0.00014375,2]
[408313184,1773394953596,595.71,0.0003287,120]
[408313187,1773395050425,397.90215848,0.0003287,120]
[408313191,1773395349314,9999.0698157,0.00032877,120]
[408313192,1773395409001,3180.0,0.00032877,120]
[408313193,1773395431604,-154.01,0.00015221,2]
[408313194,1773395431613,-5000.0,0.00015432,2]
[408313195,1773395431623,-159.82275348,0.00015543,2]
[408313196,1773395431633,-727.25673477,0.00016048,2]
[408313197,1773395431642,-154.01,0.00016066,2]
[408313198,1773395431652,-1200.0,0.00016676,2]
[408313199,1773395431662,-3617.00156386,0.00016677,2]
[408313200,1773395431672,-490.0,0.00016742,2]
[408313201,1773395431682,-250.0,0.00016743,2]
[408313202,1773395431691,-94.17225292,0.00016743,2]
[408313203,1773395431703,-4905.82774708,0.00016743,2]
[408313204,1773395431713,-2500.0,0.00016743,2]
[408313205,1773395431723,-2500.0,0.00016743,2]
[408313206,1773395431733,-2500.0,0.00016743,2]
[408313207,1773395431742,-2500.0,0.00016743,2]
[408313208,1773395431755,-2500.0,0.00016743,2]
[408313209,1773395431765,-250.0,0.00016743,2]
[408313210,1773395431775,-154.01,0.00016912,2]
[408313211,1773395431785,-318.03,0.000173,7]
[408313212,1773395431795,-160.0,0.00017751,2]
[408313213,1773395431804,-154.01,0.00017757,2]
[408313214,1773395431815,-150.0,0.00017764,2]
[408313215,1773395431824,-200.0,0.00017825,2]
[408313216,1773395431834,-299.57,0.00017828,2]
[408313217,1773395431843,-877.56,0.00017927,2]
[408313218,1773395431853,-1884.85,0.0001826,2]
[408313219,1773395431862,-877.56,0.00018376,2]
[408313220,1773395431872,-801.65239815,0.00018441,2]
[408313222,1773395431882,-154.01,0.00018603,2]
[408313224,1773395431891,-299.57,0.00018719,2]
[408313226,1773395431901,-159.82275347,0.00018735,2]
[408313228,1773395431910,-877.56,0.00018824,2]
[408313230,1773395431920,-23299.38399671,0.00018834,2]
[408313232,1773395431931,-450.48127443,0.00018834,2]
[408313234,1773395431942,-1797.775,0.00018834,2]
[408313236,1773395431957,-5493.66644587,0.00018834,2]
[408313238,1773395431968,-468.24963319,0.00018834,2]
[408313241,1773395431979,-427.469526,0.00018834,2]
[408313242,1773395431998,-2415.5575238,0.00018834,2]
[408313243,1773395432008,-3482.6859,0.00018834,2]
[408313244,1773395432017,-158.06121793,0.00018835,2]
[408313245,1773395432026,-2176.11,0.00018864,2]
[408313246,1773395432036,-297.8,0.00018915,2]
[408313247,1773395432045,-417.3197,0.00018935,2]
[408313248,1773395432055,-202.21195502,0.00018958,2]
[408313249,1773395432067,-31050.57187491,0.00018958,2]
[408313250,1773395432077,-1005.0,0.00018965,2]
[408313251,1773395432086,-258.67259579,0.00018999,2]
[408313252,1773395432095,-1327.8,0.00019021,2]
[408313253,1773395432104,-500.0,0.00019034,2]
[408313254,1773395432113,-515.52448038,0.00019034,2]
[408313255,1773395432123,-501.88920658,0.00019034,2]
[408313256,1773395432137,-540.40783545,0.00019034,2]
[408313257,1773395432146,-539.6122178,0.00019034,2]
[408313258,1773395432156,-2000.0,0.00019067,2]
[408313259,1773395432165,-152.74,0.00019096,2]
[408313260,1773395432177,-5.38065964,0.00019272,2]
[408313261,1773395432188,-872.17934036,0.00019272,2]
[408313262,1773395432198,-158.06121791,0.00019368,2]
[408313263,1773395432209,-1043.0,0.00019424,2]
[408313264,1773395432219,-443.61,0.00019424,2]
[408313265,1773395432228,-3753.0,0.00019424,2]
[408313266,1773395432238,-2463.0,0.00019424,2]
[408313267,1773395432247,-409.4838774,0.000195,2]
[408313268,1773395432257,-1718.12160698,0.00019533,2]
[408313269,1773395432266,-299.57,0.00019611,2]
[408313270,1773395432275,-877.56,0.0001972,2]
[408313271,1773395432284,-1384.209,0.00019833,2]
[408313272,1773395432293,-171.68148974,0.000199,2]
[408313273,1773395432302,-3622.8222,0.000199,2]
[408313274,1773395432312,-158.06121791,0.000199,2]
[408313275,1773395432321,-200.76634596,0.000199,2]
[408313276,1773395432330,-1522.26731176,0.000199,2]
[408313277,1773395432339,-500.0,0.00019999,2]
[408313278,1773395432349,-500.0,0.00019999,2]
[408313279,1773395432358,-292.75809636,0.00019999,2]
[408313280,1773395437820,-207.24190364,0.00019999,2]
[408313281,1773395437831,-191.70842196,0.00019999,2]
[408313282,1773395437843,-202.45825473,0.0002,2]
[408313289,1773395438113,-2055.54174527,0.0002,2]
[408313290,1773395438124,-681.33901199,0.0002,2]
[408313297,1773395440104,-1327.66098801,0.0002,2]
[408313298,1773395440115,-767690.18832398,0.0002,2]
[408313299,1773395440126,-170968.91084595,0.0002,2]
[408313300,1773395440138,-160.0,0.0002,7]
[408313301,1773395440149,-1982137.41662612,0.0002,2]
[408313310,1773395442899,-376696.50008174,0.0002,2]
[408313311,1773395442911,-114296.33431977,0.0002,2]
[408313320,1773395445591,-387.8187212,0.0002,2]
[408313321,1773395445604,-1653.25189177,0.0002,2]
[408313322,1773395445759,-200974.45699776,0.0002,2]
[408313323,1773395445771,-244795.38530746,0.0002,2]
[408313324,1773395446014,-1357.8,0.0002,2]
[408313327,1773395801817,10109.11766099,0.00021446,120]
[408313332,1773396127803,2522.84,0.0001439,2]
[408313339,1773396622648,344.0,0.00032877,120]
[408313355,1773396631788,-7153.26184371,0.0001439,2]
[408313358,1773396631843,-702.44247303,0.0001439,2]
[408313359,1773396631853,-269.0,0.0001439,2]
[408313360,1773396631862,-300.0,0.00014428,2]
[408313361,1773396631871,-1200.0,0.00014465,2]
[408313362,1773396631880,-600.0,0.00014466,2]
[408313363,1773396631888,-269.62516553,0.00014542,2]
[408313364,1773396631897,-250.0,0.00015,2]
[408313365,1773396631906,-305.70426919,0.00015829,2]
[408313366,1773396631915,-500.0,0.00015829,2]
[408313367,1773396631923,-600.0,0.00015829,2]
[408313368,1773396631932,-300.0,0.00015829,2]
[408313369,1773396631941,-622.0,0.00015912,2]
[408313370,1773396631950,-5000.00324434,0.000162,5]
[408313371,1773396631959,-380.0,0.00016466,2]
[408313372,1773396631967,-500.0,0.00017096,2]
[408313373,1773396631976,-166.66,0.00017385,2]
[408313374,1773396631984,-166.66,0.00017751,2]
[408313375,1773396631993,-286.23,0.00018,7]
[408313376,1773396632003,-1516.0,0.00018033,2]
[408313377,1773396632012,-166.66,0.00018117,2]
[408313378,1773396632020,-500.0,0.00018219,2]
[408313379,1773396632029,-200.0,0.00018455,2]
[408313380,1773396632038,-1856.37,0.00018464,2]
[408313381,1773396632046,-166.66,0.00018483,2]
[408313382,1773396632055,-150.0,0.00018543,2]
[408313383,1773396632064,-1804.66095518,0.00018733,2]
[408313384,1773396632073,-83539.1414,0.00018734,2]
[408313385,1773396632082,-150.0,0.00018814,2]
[408313386,1773396632091,-166.66,0.00018849,2]
[408313387,1773396632101,-2473.54,0.00018952,2]
[408313388,1773396632109,-500.0,0.00018999,2]
[408313389,1773396632118,-151.0,0.00018999,2]
[408313390,1773396632127,-3753.0,0.00019029,2]
[408313391,1773396632135,-2463.0,0.00019029,2]
[408313394,1773396632144,-500.0,0.00019054,2]
[408313397,1773396632153,-151.0,0.00019054,2]
[408313399,1773396632162,-500.0,0.00019109,2]
[408313401,1773396632170,-151.0,0.00019109,2]
[408313403,1773396632179,-1500.0,0.00019134,2]
[408313405,1773396632187,-500.0,0.00019164,2]
[408313406,1773396632196,-151.0,0.00019164,2]
[408313407,1773396632206,-2000.0,0.00019198,2]
[408313409,1773396632215,-166.66,0.00019215,2]
[408313411,1773396632224,-600.2919257,0.00019219,2]
[408313412,1773396632233,-151.0,0.00019219,2]
[408313413,1773396632242,-6729.95070576,0.00019274,2]
[408313414,1773396632254,-5468.84929424,0.00019274,2]
[408313415,1773396632264,-233.01634647,0.00019274,2]
[408313416,1773396632273,-168.0,0.00019517,2]
[408313417,1773396632282,-168.0,0.00019722,2]
[408313418,1773396632290,-202.59725118,0.00019725,2]
[408313419,1773396632299,-211.946409,0.00019725,2]
[408313420,1773396632308,-257.72101256,0.00019725,2]
[408313421,1773396632317,-150.0,0.00019725,2]
[408313422,1773396632326,-1484.503,0.00019777,2]
[408313423,1773396632335,-150.0,0.0001978,2]
[408313424,1773396632344,-18957.74105332,0.000198,2]
[408313425,1773396632357,-560.88354,0.000198,2]
[408313426,1773396632368,-405.23147994,0.000198,2]
[408313427,1773396632379,-433.442,0.000198,2]
[408313428,1773396632390,-8909.86432674,0.000198,2]
[408313429,1773396632400,-990.54043,0.000198,2]
[408313430,1773396632408,-990.54044,0.000198,2]
[408313431,1773396632418,-500.0,0.00019805,2]
[408313432,1773396632427,-1000.0,0.00019818,2]
[408313433,1773396632436,-166.67,0.00019825,2]
[408313434,1773396632445,-250.0,0.00019835,2]
[408313435,1773396632455,-167.74279388,0.000199,2]
[408313436,1773396632465,-12759.96583047,0.000199,3]
[408313437,1773396632474,-222.52962526,0.000199,3]
[408313438,1773396632485,-9245.5127692,0.000199,2]
[408313439,1773396632497,-2998.41587328,0.000199,2]
[408313440,1773396632506,-1159.19,0.00019902,2]
[408313441,1773396632515,-3604.67035572,0.00019918,2]
[408313442,1773396632525,-168.0,0.00019961,2]
[408313443,1773396632535,-151.86783288,0.0001999,2]
[408313444,1773396632543,-151.86783288,0.0001999,2]
[408313445,1773396632554,-151.0,0.00019997,2]
[408313446,1773396632566,-155.0,0.00019999,2]
[408313447,1773396632575,-500.0,0.00019999,2]
[408313448,1773396632585,-277.15798015,0.00019999,2]
[408313449,1773396632594,-500.0,0.00019999,2]
[408313450,1773396632603,-500.0,0.00019999,2]
[408313451,1773396632612,-500.0,0.00019999,2]
[408313452,1773396632621,-500.0,0.00019999,2]
[408313453,1773396632630,-500.0,0.00019999,2]
[408313454,1773396632639,-500.0,0.00019999,2]
[408313455,1773396632648,-500.0,0.00019999,2]
[408313456,1773396632657,-500.0,0.00019999,2]
[408313457,1773396632669,-500.0,0.00019999,2]
[408313458,1773396632679,-500.0,0.00019999,2]
[408313459,1773396632690,-500.0,0.00019999,2]
[408313460,1773396632702,-500.0,0.00019999,2]
[408313461,1773396632714,-500.0,0.00019999,2]
[408313462,1773396632724,-500.0,0.00019999,2]
[408313463,1773396632735,-470.97221044,0.00019999,2]
[408313464,1773396632745,-500.0,0.00019999,2]
[408313465,1773396632754,-500.0,0.00019999,2]
[408313466,1773396632764,-500.0,0.00019999,2]
[408313467,1773396632776,-500.0,0.00019999,2]
[408313468,1773396632787,-500.0,0.00019999,2]
[408313469,1773396632798,-500.0,0.00019999,2]
[408313470,1773396632809,-500.0,0.00019999,2]
[408313471,1773396632822,-500.0,0.00019999,2]
[408313472,1773396632833,-500.0,0.00019999,2]
[408313473,1773396632843,-500.0,0.00019999,2]
[408313474,1773396632855,-500.0,0.00019999,2]
[408313475,1773396632867,-500.0,0.00019999,2]
[408313476,1773396632878,-500.0,0.00019999,2]
[408313477,1773396632889,-500.0,0.00019999,2]
[408313478,1773396632900,-500.0,0.00019999,2]
[408313479,1773396632911,-500.0,0.00019999,2]
[408313480,1773396632922,-500.0,0.00019999,2]
[408313481,1773396632933,-500.0,0.00019999,2]
[408313482,1773396632944,-500.0,0.00019999,2]
[408313483,1773396632954,-500.0,0.00019999,2]
[408313484,1773396632964,-500.0,0.00019999,2]
[408313485,1773396632973,-485.32992184,0.00019999,2]
[408313486,1773396632985,-500.0,0.00019999,2]
[408313487,1773396632996,-500.0,0.00019999,2]
[408313488,1773396633007,-500.0,0.00019999,2]
[408313489,1773396633018,-300.0,0.00019999,2]
[408313490,1773396633029,-213.89317729,0.00019999,2]
[408313491,1773396633040,-156.65640271,0.00019999,2]
[408313492,1773396633051,-2338.0,0.0002,2]
[408313493,1773396633062,-2416.0,0.0002,2]
[408313494,1773396633073,-22331.4797506,0.0002,2]
[408313495,1773396638058,-480752.50346458,0.0002,2]
[408313496,1773396638091,-1343.44849106,0.0002,2]
[408313497,1773396638149,-365.01066504,0.0002,2]
[408313498,1773396638261,-12979.71,0.0002,2]
[408313505,1773396640105,-2920956.51579605,0.0002,2]
[408313537,1773396642940,-923.0,0.00019029,2]
[408313538,1773396642951,-1032.04590265,0.000196,2]
[408313539,1773396642962,-1023.0580874,0.000196,2]
[408313540,1773396642972,-575489.85813621,0.0002,2]
[408313541,1773396642985,-101720.21822646,0.0002,2]
[408313542,1773396642996,-1000.0,0.0002,2]
[408313543,1773396643007,-1000.0,0.0002,2]
[408313544,1773396643018,-195.29084869,0.0002,2]
[408313545,1773396643028,-185912.26686997,0.0002,2]
[408313546,1773396643044,-87982.49545573,0.0002,2]
[408313547,1773396643202,-337.7959,0.0002,2]
[408313565,1773396645817,-1044.50459125,0.000196,2]
[408313567,1773396645828,-523.49540875,0.000196,2]
[408313568,1773396645840,-516.36234779,0.000196,2]
[408313569,1773396645851,-363.55350088,0.000199,2]
[408313570,1773396645870,-230.41427956,0.000199,2]
[408313571,1773396645880,-4340.98025199,0.0002,2]
[408313572,1773396646027,-1456.94447402,0.000196,2]
[408313573,1773396646082,-521.58025199,0.000196,2]
[408313574,1773396646093,-539.119748,0.0002,2]
[408313575,1773396646137,-2821141.05720114,0.0002,2]
[408313580,1773397230032,198.53,0.0002807,120]
[408313585,1773397613894,4349.0,0.00031233,120]
[408313586,1773397668190,177.1,9.299e-05,2]